bitfinex-derivatives/quotes_SOLF0:USTF0_20241016
["timestamp","ask_amount","ask_price","bid_price","bid_amount"]
[1729084173032,2.0,155.34,155.3,15.46]
[1729084173232,2.0,155.34,155.31,5.28]
[1729084174733,5.219,155.34,155.31,5.28]
[1729084176434,2.0,155.34,155.31,5.28]
[1729084176641,2.0,155.34,155.32,15.46]
[1729084178036,5.219,155.34,155.32,15.46]
[1729084178647,2.0,155.34,155.32,15.46]
[1729084180538,2.0,155.34,155.33,5.28]
[1729084188349,2.0,155.34,155.33,20.74]
[1729084189836,2.0,155.34,155.33,15.17]
[1729084193548,2.0,155.34,155.25,69.54]
[1729084193850,2.0,155.34,155.33,9.89]
[1729084194048,2.0,155.34,155.32,15.15]
[1729084194447,3.2191,155.33,155.32,15.15]
[1729084194755,3.2191,155.33,155.31,5.26]
[1729084195053,3.2191,155.33,155.32,9.89]
[1729084196352,2.0,155.34,155.32,9.89]
[1729084196554,2.0,155.34,155.33,9.89]
[1729084196945,5.219,155.34,155.32,9.89]
[1729084197443,2.0,155.34,155.32,9.89]
[1729084197647,3.2191,155.33,155.32,9.89]
[1729084200945,11.89,155.34,155.25,69.54]
[1729084201147,9.89,155.3,155.25,9.89]
[1729084201351,2.7508,155.29,155.25,9.89]
[1729084201657,4.14,155.29,155.25,9.89]
[1729084201851,3.2207,155.26,155.25,9.89]
[1729084202054,9.89,155.28,155.23,15.17]
[1729084202355,4.14,155.29,155.24,9.89]
[1729084202657,4.14,155.29,155.25,9.89]
[1729084203348,3.2204,155.27,155.25,9.89]
[1729084203655,4.14,155.29,155.25,9.89]
[1729084204354,3.2201,155.28,155.25,9.89]
[1729084204554,2.7508,155.29,155.27,9.89]
[1729084204763,11.2328,155.33,155.28,9.89]
[1729084204967,14.1113,155.33,155.28,9.89]
[1729084205255,3.2197,155.3,155.28,9.89]
[1729084205455,3.28856682,155.32,155.28,9.89]
[1729084205957,3.2197,155.3,155.28,9.89]
[1729084207648,3.2195,155.31,155.28,9.89]
[1729084207854,4.2213,155.33,155.3,9.89]
[1729084208354,3.2194,155.32,155.3,9.89]
[1729084208553,4.2213,155.33,155.3,9.89]
[1729084209058,3.2195,155.31,155.3,9.89]
[1729084209553,9.89,155.31,155.17,69.52]
[1729084209771,9.89,155.28,155.24,9.89]
[1729084210052,9.89,155.28,155.17,69.52]
[1729084210053,3.2213,155.22,155.21,9.89]
[1729084210251,9.89,155.26,155.2,15.15]
[1729084210648,3.2216,155.21,155.2,9.89]
[1729084211748,3.26750853,155.23,155.2,9.89]
[1729084211954,4.1946,155.27,155.18,15.46]
[1729084212161,15.46,155.26,155.18,5.26]
[1729084212359,3.2219,155.2,155.18,5.26]
[1729084212561,3.23142838,155.22,155.18,5.26]
[1729084212854,15.46,155.26,155.18,5.26]
[1729084213051,3.2218,155.2,155.18,5.26]
[1729084215563,2.0,155.21,155.18,5.26]
[1729084215764,3.222,155.2,155.18,5.26]
[1729084215964,2.0,155.21,155.18,5.26]
[1729084216463,3.2219,155.2,155.18,5.26]
[1729084217066,3.222,155.19,155.18,5.26]
[1729084217359,2.0,155.21,155.14,15.46]
[1729084217566,2.6764,155.2,155.15,5.26]
[1729084218163,3.2221,155.19,155.15,5.26]
[1729084218465,2.6764,155.2,155.14,15.46]
[1729084218653,3.9896,155.2,155.14,20.72]
[1729084219670,3.222,155.19,155.14,20.72]
[1729084221165,3.222,155.19,155.15,5.26]
[1729084221353,3.9896,155.2,155.15,5.26]
[1729084221354,3.2224,155.18,155.15,5.26]
[1729084221967,3.2224,155.18,155.14,20.72]
[1729084224267,7.2115,155.2,155.16,15.46]
[1729084224468,3.9896,155.2,155.16,15.46]
[1729084224765,7.2115,155.2,155.16,15.46]
[1729084224967,2.0,155.21,155.18,15.46]
[1729084225358,5.2216,155.21,155.18,15.46]
[1729084225562,2.0,155.21,155.18,15.46]
[1729084225962,3.2219,155.2,155.18,15.46]
[1729084226172,3.2219,155.2,155.16,15.46]
[1729084229769,2.0,155.21,155.16,15.46]
[1729084229962,5.2217,155.21,155.16,15.46]
[1729084230164,2.0,155.21,155.16,15.46]
[1729084230560,3.2219,155.2,155.16,15.46]
[1729084231267,3.222,155.19,155.16,15.46]
[1729084231858,2.0,155.21,155.18,9.9]
[1729084232973,5.2217,155.21,155.18,9.9]
[1729084233166,2.0,155.21,155.18,9.9]
[1729084233471,2.0,155.21,155.17,9.9]
[1729084234171,3.2221,155.19,155.17,9.9]
[1729084236774,3.2223,155.18,155.14,5.26]
[1729084236971,3.2223,155.18,155.17,9.9]
[1729084237771,3.222,155.19,155.17,9.9]
[1729084237978,2.0,155.21,155.16,9.9]
[1729084238169,2.0,155.21,155.17,9.9]
[1729084238673,9.9,155.2,155.09,69.54]
[1729084238871,11.3524,155.2,155.15,9.9]
[1729084239179,3.2223,155.18,155.15,9.9]
[1729084239472,11.3524,155.2,155.15,9.9]
[1729084240477,2.0,155.21,155.16,9.9]
[1729084241079,3.2221,155.19,155.16,9.9]
[1729084243182,11.9,155.21,155.16,9.9]
[1729084243482,9.9,155.2,155.15,9.9]
[1729084244069,3.2224,155.18,155.15,9.9]
[1729084246676,3.2221,155.19,155.15,9.9]
[1729084246873,3.2221,155.19,155.16,9.9]
[1729084247578,17.8924,155.22,155.16,9.9]
[1729084247771,2.7324,155.22,155.18,9.9]
[1729084248075,12.6324,155.22,155.18,9.9]
[1729084249077,3.2219,155.2,155.18,9.9]
[1729084251076,2.7324,155.22,155.18,9.9]
[1729084251386,3.2216,155.21,155.18,9.9]
[1729084251885,14.6324,155.22,155.18,9.9]
[1729084252777,3.2219,155.2,155.18,9.9]
[1729084253375,3.2219,155.2,155.16,9.9]
[1729084253783,3.2223,155.18,155.09,69.54]
[1729084253981,3.2223,155.18,155.14,9.9]
[1729084254179,3.2223,155.18,155.14,15.16]
[1729084254380,9.9,155.16,155.08,2.96380421]
[1729084254587,9.9,155.13,155.07,9.9]
[1729084254788,13.06567289,155.13,155.07,9.9]
[1729084254987,3.2239,155.1,155.05,5.26]
[1729084255280,3.2239,155.1,155.07,9.9]
[1729084255480,9.9,155.12,155.05,5.26]
[1729084255687,3.2239,155.1,155.07,9.9]
[1729084255888,9.9,155.12,155.07,9.9]
[1729084256182,9.9,155.1,155.01,69.6]
[1729084256379,9.9,155.07,154.99,5.26]
[1729084256585,9.9,155.07,155.02,9.9]
[1729084256786,9.9,155.09,155.04,9.9]
[1729084257088,3.2243,155.08,155.04,9.9]
[1729084257580,9.9,155.09,155.04,9.9]
[1729084257786,3.2246,155.07,155.03,5.26]
[1729084257983,3.21921341,155.1,155.03,5.26]
[1729084258186,3.21921341,155.1,155.04,15.48]
[1729084258187,3.224,155.1,155.04,15.48]
[1729084258391,23.4595,155.15,155.06,15.48]
[1729084258583,26.75382624,155.15,155.06,13.48]
[1729084258785,3.2239,155.1,155.06,13.48]
[1729084260286,3.224,155.1,155.06,13.48]
[1729084260589,26.75382624,155.15,155.06,13.48]
[1729084261090,3.224,155.1,155.06,13.48]
[1729084261286,26.75382624,155.15,155.06,13.48]
[1729084261587,3.2232,155.13,155.07,5.26]
[1729084261788,2.7195,155.15,155.1,15.48]
[1729084262491,3.2232,155.14,155.1,15.48]
[1729084262881,2.7195,155.15,155.1,15.48]
[1729084263083,15.48,155.28,155.14,30.96]
[1729084263288,2.6626,155.26,155.19,15.48]
[1729084263494,2.6626,155.26,155.2,20.74]
[1729084263495,5.95220092,155.26,155.2,20.74]
[1729084263689,2.6626,155.26,155.21,5.26]
[1729084263897,5.26,155.31,155.22,15.48]
[1729084264191,2.6626,155.3,155.23,5.26]
[1729084264896,2.6626,155.3,155.23,20.74]
[1729084265489,2.6626,155.3,155.24,5.26]
[1729084266095,18.1426,155.3,155.24,5.26]
[1729084266993,18.1426,155.3,155.21,15.48]
[1729084267294,18.1426,155.3,155.22,5.26]
[1729084267497,3.2212,155.23,155.22,5.26]
[1729084268690,3.221,155.24,155.22,5.26]
[1729084270698,23.4026,155.3,155.22,5.26]
[1729084270998,23.4026,155.3,155.21,15.48]
[1729084271299,3.2202,155.28,155.21,15.48]
[1729084271500,23.4026,155.3,155.21,15.48]
[1729084271888,3.2211,155.24,155.21,15.48]
[1729084272590,3.2202,155.28,155.21,15.48]
[1729084272785,2.6626,155.3,155.23,15.48]
[1729084272996,2.6626,155.3,155.25,15.48]
[1729084273599,3.2202,155.28,155.25,15.48]
[1729084273898,2.6626,155.3,155.25,15.48]
[1729084275495,3.2203,155.27,155.25,15.48]
[1729084277307,2.6626,155.3,155.23,15.48]
[1729084277497,3.221,155.24,155.21,15.48]
[1729084277699,3.221,155.24,155.22,5.26]
[1729084279393,2.6626,155.3,155.22,5.26]
[1729084279598,2.6626,155.3,155.23,15.48]
[1729084279999,3.2206,155.26,155.23,15.48]
[1729084281197,2.6626,155.3,155.23,15.48]
[1729084281403,2.6626,155.3,155.22,5.26]
[1729084281404,3.22,155.29,155.25,15.48]
[1729084281602,2.6626,155.3,155.26,5.26]
[1729084281797,3.22,155.29,155.26,5.26]
[1729084283200,3.22,155.29,155.27,15.48]
[1729084284005,3.2198,155.3,155.27,15.48]
[1729084284506,3.2195,155.31,155.27,15.48]
[1729084285306,2.7129,155.35,155.27,15.48]
[1729084285608,3.2195,155.31,155.27,15.48]
[1729084286106,3.219,155.34,155.29,15.48]
[1729084286302,2.7129,155.35,155.31,15.48]
[1729084286502,2.7129,155.35,155.32,5.26]
[1729084286698,3.25874557,155.34,155.3,5.26]
[1729084286909,18.73874557,155.34,155.24,15.48]
[1729084287108,18.77931888,155.34,155.25,5.26]
[1729084287305,15.48,155.32,155.25,5.26]
[1729084287504,3.2204,155.27,155.25,5.26]
[1729084289007,3.2204,155.27,155.26,5.26]
[1729084289705,3.22,155.29,155.26,5.26]
[1729084290512,3.2202,155.28,155.26,5.26]
[1729084291615,3.2203,155.27,155.26,5.26]
[1729084294215,3.17382623,155.31,155.25,5.26]
[1729084294418,1.3157,155.3,155.25,5.26]
[1729084294612,4.56916215,155.3,155.25,5.26]
[1729084294811,3.2205,155.26,155.25,5.26]
[1729084295412,20.04916215,155.3,155.22,5.26]
[1729084295915,3.2208,155.25,155.22,5.26]
[1729084296210,3.2208,155.25,155.22,20.74]
[1729084302416,3.2204,155.27,155.22,20.74]
[1729084302611,4.56916215,155.3,155.22,20.74]
[1729084303014,3.2203,155.28,155.24,15.48]
[1729084303920,3.28910754,155.31,155.24,15.48]
[1729084304113,15.48,155.33,155.25,5.26]
[1729084304323,18.73228964,155.33,155.25,5.26]
[1729084304523,3.2205,155.26,155.25,5.26]
[1729084306918,3.2208,155.26,155.25,5.26]
[1729084314829,15.48,155.31,155.21,15.48]
[1729084315133,3.2211,155.25,155.22,5.26]
[1729084315832,3.2211,155.25,155.24,9.89]
[1729084316333,2.6655,155.29,155.24,9.89]
[1729084316631,3.2207,155.27,155.24,15.15]
[1729084319538,3.2208,155.26,155.24,15.15]
[1729084320240,3.2214,155.24,155.23,15.15]
[1729084324139,9.89,155.24,155.19,9.89]
[1729084324336,1.3514,155.28,155.23,9.89]
[1729084324746,3.2213,155.24,155.23,9.89]
[1729084325040,3.2148142,155.25,155.21,9.89]
[1729084325347,11.2414,155.28,155.21,9.89]
[1729084325348,3.2217,155.22,155.21,9.89]
[1729084325942,3.222,155.21,155.2,9.89]
[1729084329044,3.2222,155.2,155.19,9.89]
[1729084330342,2.8046,155.23,155.18,5.24]
[1729084330549,3.2223,155.19,155.18,5.24]
[1729084331848,2.8046,155.23,155.18,9.89]
[1729084332448,3.2223,155.19,155.18,9.89]
[1729084334547,2.8046,155.23,155.18,9.89]
[1729084334847,2.8046,155.23,155.19,9.89]
[1729084335047,3.16199088,155.25,155.22,9.89]
[1729084335243,3.2213,155.24,155.22,9.89]
[1729084335448,6.6114,155.28,155.23,13.1115]
[1729084335645,1.3514,155.28,155.23,9.89]
[1729084335846,1.3514,155.28,155.25,9.89]
[1729084336045,2.7556,155.31,155.2,5.26]
[1729084336046,2.7556,155.31,155.26,9.89]
[1729084336444,2.7556,155.31,155.28,9.89]
[1729084336649,2.7556,155.31,155.29,9.89]
[1729084336851,3.2197,155.32,155.29,9.89]
[1729084337047,3.2197,155.32,155.31,9.89]
[1729084339853,3.2197,155.32,155.29,15.46]
[1729084340052,3.16889947,155.34,155.29,15.46]
[1729084340053,3.2198,155.31,155.29,15.46]
[1729084341253,3.16889947,155.34,155.29,15.46]
[1729084341550,3.22,155.3,155.28,5.26]
[1729084342356,3.21173114,155.34,155.28,5.26]
[1729084342664,4.2794,155.35,155.27,5.24]
[1729084343458,3.2203,155.29,155.27,5.24]
[1729084347561,3.2202,155.3,155.27,8.4606]
[1729084349561,4.2794,155.35,155.28,18.6803]
[1729084350065,3.2198,155.31,155.28,18.6803]
[1729084352559,2.8834,155.35,155.3,15.46]
[1729084352859,2.8834,155.35,155.31,5.24]
[1729084353053,6.4356,155.41,155.32,15.46]
[1729084353252,1.394,155.45,155.36,15.46]
[1729084353470,3.2181,155.4,155.37,8.4584]
[1729084355260,3.2181,155.4,155.38,3.2183]
[1729084356165,3.2178,155.41,155.38,3.2183]
[1729084356958,3.21426182,155.42,155.38,3.2183]
[1729084357158,3.218,155.4,155.37,5.24]
[1729084359360,3.218,155.4,155.37,8.4585]
[1729084359964,3.218,155.4,155.39,9.89]
[1729084361362,3.27219965,155.42,155.38,5.24]
[1729084361560,9.89,155.4,155.28,6.4408]
[1729084361769,9.89,155.39,155.29,5.24]
[1729084362062,3.2191,155.35,155.32,9.89]
[1729084362273,9.89,155.36,155.33,5.24]
[1729084362871,3.2192,155.34,155.33,5.24]
[1729084363570,3.25898429,155.34,155.32,2.0204]
[1729084363868,15.47,155.36,155.29,5.24]
[1729084364968,3.2199,155.31,155.29,5.24]
[1729084365168,3.25705285,155.33,155.29,5.24]
[1729084365364,15.47,155.36,155.29,5.24]
[1729084365769,3.22,155.3,155.29,5.24]
[1729084371574,3.2193,155.34,155.31,3.2198]
[1729084371777,4.052,155.38,155.29,20.71]
[1729084372374,4.052,155.38,155.3,3.2199]
[1729084372375,3.2195,155.33,155.3,3.2199]
[1729084375278,3.2195,155.33,155.31,15.47]
[1729084376273,4.052,155.38,155.29,20.71]
[1729084376479,3.2199,155.31,155.29,20.71]
[1729084377982,4.052,155.38,155.29,20.71]
[1729084378183,3.2197,155.32,155.29,23.9302]
[1729084382286,3.22,155.3,155.29,20.71]
[1729084382482,3.26637975,155.34,155.29,20.71]
[1729084382782,4.052,155.38,155.29,20.71]
[1729084383385,3.22,155.31,155.29,20.71]
[1729084384479,3.20391317,155.34,155.27,15.47]
[1729084384781,6.4378,155.36,155.27,20.71]
[1729084384988,3.2208,155.27,155.26,5.24]
[1729084385481,3.2212,155.25,155.21,3.2218]
[1729084385689,2.7718,155.28,155.23,5.24]
[1729084385876,2.7718,155.28,155.23,9.89]
[1729084386076,3.2213,155.24,155.23,9.89]
[1729084387784,3.2213,155.24,155.22,5.24]
[1729084388581,3.2128132,155.25,155.22,5.24]
[1729084388781,2.7718,155.28,155.21,15.46]
[1729084388980,2.7718,155.28,155.2,5.24]
[1729084389286,5.92356782,155.28,155.2,5.24]
[1729084389484,5.92356782,155.28,155.17,20.7]
[1729084389485,15.46,155.26,155.17,20.7]
[1729084389687,3.2225,155.18,155.17,5.24]
[1729084389893,3.2225,155.18,155.15,15.46]
[1729084390484,3.26483717,155.2,155.14,5.24]
[1729084390681,2.7541,155.19,155.14,5.24]
[1729084390882,5.94098053,155.19,155.11,5.24]
[1729084391196,3.2237,155.13,155.11,20.7]
[1729084391486,3.2237,155.13,155.11,15.46]
[1729084392883,3.2237,155.12,155.11,15.46]
[1729084394494,1.4313,155.18,155.11,15.46]
[1729084394789,1.4313,155.18,155.13,15.46]
[1729084394978,3.2232,155.15,155.13,15.46]
[1729084395175,1.4313,155.18,155.11,15.46]
[1729084395385,4.64945313,155.18,155.11,15.46]
[1729084395584,3.2235,155.14,155.11,15.46]
[1729084395882,4.64945313,155.18,155.09,5.24]
[1729084396084,3.2241,155.11,155.09,20.7]
[1729084396486,20.10945313,155.18,155.09,20.7]
[1729084397488,3.2241,155.11,155.09,20.7]
[1729084398591,3.2238,155.12,155.09,20.7]
[1729084398792,4.64945313,155.18,155.09,20.7]
[1729084399185,3.2237,155.13,155.09,20.7]
[1729084399787,3.2237,155.13,155.1,3.2241]
[1729084400186,3.2237,155.13,155.09,20.7]
[1729084400795,3.2238,155.12,155.09,23.9243]
[1729084402097,3.2238,155.12,155.11,15.46]
[1729084406195,3.2237,155.13,155.11,15.46]
[1729084408097,3.2237,155.12,155.11,15.46]
[1729084408393,9.88945313,155.18,155.08,20.7]
[1729084408793,3.2239,155.12,155.09,3.2243]
[1729084410902,3.2242,155.11,155.08,23.9245]
[1729084411398,3.2239,155.12,155.09,3.2244]
[1729084411605,9.88945313,155.18,155.11,15.46]
[1729084412002,4.64945313,155.18,155.13,15.46]
[1729084412204,2.7541,155.19,155.15,15.46]
[1729084412413,5.95719268,155.19,155.15,15.46]
[1729084412906,3.2225,155.18,155.15,15.46]
[1729084413103,5.95719268,155.19,155.15,15.46]
[1729084414098,5.95719268,155.19,155.13,15.46]
[1729084414300,5.95719268,155.19,155.12,5.24]
[1729084414501,1.3747,155.18,155.12,5.24]
[1729084415297,3.2235,155.13,155.12,5.24]
[1729084416007,6.6147,155.18,155.1,15.46]
[1729084416307,3.2238,155.12,155.1,15.46]
[1729084416703,6.6147,155.18,155.11,3.2239]
[1729084416704,1.3747,155.18,155.11,3.2239]
[1729084417711,3.2236,155.13,155.11,3.2239]
[1729084418413,1.3747,155.18,155.1,15.46]
[1729084419005,3.224,155.11,155.1,15.46]
[1729084419915,3.2244,155.1,155.08,86.62616523]
[1729084421408,3.2244,155.1,155.08,89.85076523]
[1729084421908,3.2244,155.1,155.08,86.62616523]
[1729084423908,15.46,155.15,155.05,5.24]
[1729084424212,15.46,155.15,155.04,20.7]
[1729084424415,3.225,155.06,155.04,20.7]
[1729084424615,3.225,155.06,155.04,15.46]
[1729084424811,3.28659555,155.08,155.04,15.46]
[1729084425116,3.2252,155.05,155.04,15.46]
[1729084425708,3.225,155.07,155.02,20.7]
[1729084425908,9.4332,155.12,155.02,20.7]
[1729084426110,9.4332,155.12,155.02,5.24]
[1729084426310,3.2253,155.05,155.02,23.9258]
[1729084427217,3.225,155.07,155.02,20.7]
[1729084427522,3.24210367,155.08,155.02,20.7]
[1729084427728,3.2255,155.04,155.02,20.7]
[1729084428719,3.2251,155.06,155.02,20.7]
[1729084429017,9.4332,155.12,155.04,15.46]
[1729084429411,3.225,155.06,155.04,15.46]
[1729084430415,3.225,155.06,155.03,3.2255]
[1729084430616,3.225,155.06,155.04,15.46]
[1729084431519,3.23734401,155.08,155.04,15.46]
[1729084431722,9.4332,155.12,155.04,15.46]
[1729084432214,3.2251,155.06,155.04,15.46]
[1729084432719,3.225,155.07,155.04,18.6854]
[1729084432915,3.21949116,155.08,155.04,18.6854]
[1729084433117,9.4332,155.12,155.04,18.6854]
[1729084433314,3.2249,155.07,155.04,18.6854]
[1729084433616,3.21820027,155.08,155.04,18.6854]
[1729084433818,9.4332,155.12,155.04,15.46]
[1729084434520,3.2252,155.06,155.04,15.46]
[1729084435417,3.2249,155.07,155.04,18.6853]
[1729084437321,3.2249,155.07,155.05,3.2252]
[1729084437521,4.1932,155.12,155.06,15.46]
[1729084437718,2.7704,155.12,155.1,15.46]
[1729084438120,5.9943,155.12,155.1,15.46]
[1729084438420,2.7704,155.12,155.1,15.46]
[1729084439415,3.224,155.11,155.1,15.46]
[1729084441129,6.42137651,155.11,155.1,15.46]
[1729084442726,3.19737651,155.11,155.08,15.46]
[1729084442932,3.19737651,155.11,155.06,20.7]
[1729084443131,3.19737651,155.11,155.07,3.2246]
[1729084443332,3.2243,155.1,155.06,20.7]
[1729084444434,3.2243,155.1,155.07,3.2246]
[1729084445530,3.2243,155.1,155.06,23.9249]
[1729084446639,3.2244,155.09,155.06,23.9249]
[1729084449530,1.395,155.18,155.08,15.46]
[1729084449837,1.395,155.18,155.16,9.9]
[1729084449838,4.1907,155.18,155.16,9.9]
[1729084450042,3.2227,155.17,155.16,9.9]
[1729084451840,3.2235,155.14,155.11,8.4638]
[1729084452037,4.2139,155.18,155.11,15.47]
[1729084452343,24.9039,155.18,155.11,5.22]
[1729084452640,28.20736417,155.18,155.11,5.22]
[1729084453033,12.73736417,155.18,155.11,5.22]
[1729084453638,11.33936417,155.18,155.11,20.69]
[1729084454041,3.2237,155.13,155.11,20.69]
[1729084454641,3.2237,155.12,155.11,20.69]
[1729084455043,3.2237,155.12,155.11,18.77]
[1729084456447,3.2237,155.12,155.11,3.3]
[1729084456950,5.22,155.24,155.11,34.24]
[1729084457152,5.22,155.24,155.16,15.47]
[1729084457153,2.834,155.21,155.16,15.47]
[1729084457445,3.2227,155.17,155.16,15.47]
[1729084458047,3.2234,155.14,155.11,21.9939]
[1729084460852,3.26650763,155.16,155.11,21.9939]
[1729084461056,3.2232,155.15,155.11,21.9939]
[1729084461246,6.47897542,155.15,155.11,21.9939]
[1729084461554,3.2232,155.15,155.11,21.9939]
[1729084461953,6.50315197,155.15,155.11,21.9939]
[1729084462459,6.50315197,155.15,155.11,18.77]
[1729084462460,3.27995197,155.15,155.11,18.77]
[1729084462748,5.22,155.2,155.1,20.69]
[1729084463156,15.47,155.19,155.1,20.69]
[1729084463353,15.47,155.16,155.07,15.47]
[1729084463542,4.1994,155.15,155.07,15.47]
[1729084463747,4.1994,155.15,155.06,23.9148]
[1729084464048,4.1994,155.15,155.06,20.69]
[1729084464449,3.2243,155.1,155.07,3.2247]
[1729084464950,3.2247,155.08,155.06,20.69]
[1729084466155,3.2247,155.08,155.06,15.47]
[1729084466753,3.2248,155.07,155.04,23.9153]
[1729084467049,19.6694,155.15,155.04,23.9153]
[1729084467250,3.2247,155.08,155.05,3.2251]
[1729084468957,3.2247,155.08,155.05,18.6951]
[1729084472857,3.1972602,155.09,155.05,15.47]
[1729084473062,19.6694,155.15,155.05,15.47]
[1729084473063,3.2248,155.07,155.05,15.47]
[1729084473762,3.2248,155.07,155.06,9.91]
[1729084474659,3.14695811,155.09,155.06,9.91]
[1729084474865,9.91,155.13,155.04,8.4453]
[1729084475160,9.91,155.13,155.07,9.91]
[1729084475462,3.2246,155.08,155.07,9.91]
[1729084475664,6.50882436,155.08,155.07,9.91]
[1729084475863,3.2246,155.08,155.07,9.91]
[1729084476357,6.37949371,155.08,155.07,9.91]
[1729084479162,3.15489371,155.08,154.97,65.9600795]
[1729084479359,9.91,155.1,155.04,9.91]
[1729084479554,2.6987,155.09,155.04,9.91]
[1729084479757,3.2252,155.06,155.04,9.91]
[1729084480461,2.6987,155.09,155.05,9.91]
[1729084480770,3.2246,155.08,155.02,5.22]
[1729084481263,3.2246,155.08,155.05,3.2251]
[1729084482571,2.6987,155.09,155.07,9.91]
[1729084482755,3.2237,155.13,155.09,3.2242]
[1729084483068,2.7707,155.14,155.12,9.91]
[1729084484459,3.2235,155.13,155.12,9.91]
[1729084486764,3.2253,155.05,154.92,78.53141264]
[1729084487059,3.26584979,155.07,154.9,18.63350869]
[1729084487261,15.13,155.06,155.0,9.91]
[1729084487661,3.226,155.02,155.0,9.91]
[1729084488264,3.2258,155.02,154.98,3.2266]
[1729084488459,6.4477,155.12,154.94,5.22]
[1729084488460,6.4477,155.12,155.01,9.91]
[1729084488668,9.91,155.09,155.02,9.91]
[1729084489472,3.2254,155.05,155.02,9.91]
[1729084490567,9.91,155.1,155.03,13.1355]
[1729084490868,5.22,155.09,155.03,13.1355]
[1729084491468,3.2249,155.07,155.05,9.91]
[1729084491666,1.4077,155.15,155.06,9.91]
[1729084491868,3.2243,155.1,155.08,9.91]
[1729084493760,3.2243,155.1,155.06,18.7148]
[1729084494163,3.2244,155.09,155.06,18.7148]
[1729084499378,3.2248,155.07,155.06,15.49]
[1729084500676,1.4077,155.15,155.06,15.49]
[1729084500875,5.22,155.21,155.13,15.49]
[1729084501276,15.49,155.19,155.05,1.4109]
[1729084501482,15.49,155.17,155.08,15.49]
[1729084501679,8.0125,155.16,155.08,15.49]
[1729084501979,15.49,155.15,155.06,20.71]
[1729084502581,3.2248,155.07,155.06,5.22]
[1729084502888,20.71,155.12,155.02,15.49]
[1729084503185,3.2254,155.05,155.02,15.49]
[1729084504077,20.71,155.12,155.02,15.49]
[1729084504078,15.49,155.1,155.02,15.49]
[1729084504383,4.1529,155.09,155.02,15.49]
[1729084504576,3.2255,155.04,155.02,15.49]
[1729084505777,3.2256,155.03,155.02,15.49]
[1729084505984,5.22,155.08,155.02,15.49]
[1729084507591,3.2256,155.03,155.02,15.49]
[1729084507787,5.22,155.08,154.99,15.49]
[1729084507981,5.22,155.08,154.99,23.9364]
[1729084508884,5.22,155.08,154.99,18.7164]
[1729084509087,5.22,155.08,154.99,15.49]
[1729084509580,3.2262,155.01,154.99,15.49]